[Event "SixDays Budapest IM-B June 2024"]
[Site "Budapest"]
[Date "2024.06.03"]
[Round "1.2"]
[White "Danilenko, Dmitriy"]
[Black "Van Zyl-Rudd, Jack"]
[Result "1-0"]
[ECO "B51"]
[WhiteElo "2403"]
[BlackElo "2292"]
[Annotator "RC"]
[PlyCount "133"]
[EventDate "2024.06.01"]
[EventType "tourn"]
[EventCountry "HUN"]
[SourceTitle "playchess.com"]
[Source "ChessBase"]
[SourceQuality "1"]
[TimeControl "5400+30"]

1. e4 {[%emt 0:00:07]} c5 {[%emt 0:00:53]} 2. Nf3 {[%emt 0:00:05]} d6 {[%emt 0:00:06]} 3. Bb5+ {[%emt 0:00:07]} Nd7 {[%emt 0:00:15]} 4. c3 {[%emt 0:00:13]} Ngf6 {[%emt 0:00:10]} 5. Qe2 {[%emt 0:00:17]} a6 {[%emt 0:00:06]} 6. Ba4 {[%emt 0:00:04]} b5 {[%emt 0:00:06]} 7. Bc2 {[%emt 0:00:02]} Bb7 {[%emt 0:00:06]} 8. d4 {[%emt 0:00:11]} g6 {[%emt 0:00:29]} 9. O-O {[%emt 0:00:44]} Bg7 {[%emt 0:00:04]} 10. Re1 {[%emt 0:16:27]} e5 {[%emt 0:07:21]} 11. a4 {[%emt 0:03:46]} exd4 {[%emt 0:21:20]} 12. cxd4 {[%emt 0:06:34]} O-O {[%emt 0:25:58]} 13. d5 {[%emt 0:03:30]} c4 {[%emt 0:11:59]} 14. Nc3 {[%emt 0:09:44]} b4 {[%emt 0:00:50]} 15. Nd1 {[%emt 0:00:09]} Rc8 {[%emt 0:02:30]} 16. Ne3 {[%emt 0:00:54]} a5 {[%emt 0:08:31]} 17. Qd1 {[%emt 0:05:54]} Re8 {[%emt 0:00:52]} 18. Nf1 {[%emt 0:00:16]} Nc5 {[%emt 0:02:53]} 19. Ng3 {[%emt 0:00:05]} Ng4 {[%emt 0:00:49]} 20. Nf1 {[%emt 0:08:25]} Ne5 {[%emt 0:00:54]} 21. Nxe5 {[%emt 0:00:27]} Bxe5 {[%emt 0:00:10]} 22. Nd2 {[%emt 0:01:00]} Ba6 {[%emt 0:03:23]} 23. Nf3 {[%emt 0:10:38]} Bg7 {[%emt 0:01:00]} 24. Nd4 {[%emt 0:06:31]} Nd3 {[%emt 0:00:07]} 25. Nc6 {[%emt 0:02:00]} Rxc6 {[%emt 0:00:05]} 26. Bxd3 {[%emt 0:00:23]} Rc8 {[%emt 0:00:14]} 27. Bf1 {[%emt 0:00:27]} Qd7 {[%emt 0:03:42]} 28. Qc2 {[%emt 0:19:12]} c3 {[%emt 0:00:05]} 29. b3 {[%emt 0:01:01]} Bxf1 {[%emt 0:00:34]} 30. Rxf1 {[%emt 0:00:57]} f5 {[%emt 0:00:15]} 31. f3 {[%emt 0:00:05]} Qa7+ {[%emt 0:02:24]} 32. Kh1 {[%emt 0:00:17]} fxe4 {[%emt 0:00:04]} 33. fxe4 {[%emt 0:00:32]} Qd4 {[%emt 0:00:10]} 34. Re1 {[%emt 0:00:21]} Qxd5 {[%emt 0:04:02]} 35. Bf4 {[%emt 0:00:05]} Qe6 {[%emt 0:00:15]} 36. Rad1 {[%emt 0:00:54]} d5 {[%emt 0:00:43]} 37. e5 {[%emt 0:00:16]} Rf8 {[%emt 0:02:02]} 38. g3 {[%emt 0:02:58]} h6 {[%emt 0:00:35]} 39. Qd3 {[%emt 0:01:16]} c2 {[%emt 0:02:24]} 40. Rc1 {[%emt 0:00:10]} Rc3 {[%emt 0:00:16]} 41. Qb5 {[%emt 0:00:05]} d4 {[%emt 0:00:16]} 42. Qxa5 {[%emt 0:00:29]} g5 {[%emt 0:01:07]} 43. Bd2 {[%emt 0:00:14]} Qc6+ {[%emt 0:00:34]} 44. Kg1 {[%emt 0:00:06]} Rd3 {[%emt 0:00:19]} 45. Qxb4 {[%emt 0:01:43]} Rff3 {[%emt 0:00:01]} 46. Re2 {[%emt 0:01:26]} g4 {[%emt 0:00:44]} 47. Qc4+ {[%emt 0:01:39]} Qxc4 {[%emt 0:00:01]} 48. bxc4 {[%emt 0:00:00]} Rxd2 {[%emt 0:00:34]} 49. Rxd2 {[%emt 0:00:07]} d3 {[%emt 0:00:03]} 50. c5 {[%emt 0:01:32]} Bxe5 {[%emt 0:00:04]} 51. c6 {[%emt 0:00:08]} Kf7 {[%emt 0:01:19]} 52. Kg2 {[%emt 0:01:17]} Ke7 {[%emt 0:00:24]} 53. a5 {[%emt 0:00:21]} Bd4 {[%emt 0:01:39]} 54. c7 {[%emt 0:00:27]} Kd7 {[%emt 0:00:38]} 55. Rcxc2 {[%emt 0:00:07]} dxc2 {[%emt 0:00:34]} 56. Rxd4+ {[%emt 0:00:07]} Kc8 {[%emt 0:00:37]} 57. Rc4 {[%emt 0:00:11]} Ra3 {[%emt 0:00:07]} 58. Rxc2 {[%emt 0:00:04]} Rxa5 {[%emt 0:00:02]} 59. h3 {[%emt 0:02:01]} gxh3+ {[%emt 0:00:56]} 60. Kxh3 {[%emt 0:00:06]} h5 {[%emt 0:00:04]} 61. Kh4 {[%emt 0:00:28]} Rb5 {[%emt 0:00:29]} 62. Rc6 {[%emt 0:00:39]} Rd5 {[%emt 0:00:19]} 63. Rh6 {[%emt 0:00:09]} Kxc7 {[%emt 0:00:06]} 64. Rxh5 {[%emt 0:00:02]} Rd4+ {[%emt 0:00:30]} 65. g4 {[%emt 0:01:17]} Kd7 {[%emt 0:00:10]} 66. Re5 {[%emt 0:00:21]} Kd6 {[%emt 0:00:38]} 67. Re1 {[%emt 0:00:18]} 1-0

[Event "SixDays Budapest IM-B June 2024"]
[Site "Budapest"]
[Date "2024.06.03"]
[Round "1.3"]
[White "Izsak, Gyula"]
[Black "Bashylina, Luisa"]
[Result "0-1"]
[ECO "A01"]
[WhiteElo "2386"]
[BlackElo "2250"]
[Annotator "RC"]
[PlyCount "84"]
[EventDate "2024.06.01"]
[EventType "tourn"]
[EventCountry "HUN"]
[SourceTitle "playchess.com"]
[Source "ChessBase"]
[SourceQuality "1"]
[TimeControl "5400+30"]

1. b3 {[%emt 0:01:06]} Nf6 {[%emt 0:00:59]} 2. Bb2 {[%emt 0:00:18]} g6 {[%emt 0:00:39]} 3. Nf3 {[%emt 0:03:19]} d5 {[%emt 0:00:45]} 4. e3 {[%emt 0:03:33]} Bg7 {[%emt 0:00:19]} 5. c4 {[%emt 0:01:41]} c6 {[%emt 0:03:56]} 6. Be2 {[%emt 0:07:16]} O-O {[%emt 0:00:42]} 7. O-O {[%emt 0:00:54]} Re8 {[%emt 0:13:30]} 8. h3 {[%emt 0:21:52]} Bf5 {[%emt 0:09:10]} 9. d4 {[%emt 0:03:07]} Nbd7 {[%emt 0:04:28]} 10. Nc3 {[%emt 0:03:45]} h6 {[%emt 0:08:15]} 11. cxd5 {[%emt 0:15:14]} Nxd5 {[%emt 0:04:43]} 12. Nxd5 {[%emt 0:06:16]} cxd5 {[%emt 0:00:08]} 13. Qd2 {[%emt 0:05:22]} Rc8 {[%emt 0:03:17]} 14. Rfc1 {[%emt 0:01:05]} Qb6 {[%emt 0:03:05]} 15. Ne5 {[%emt 0:04:33]} Red8 {[%emt 0:12:20]} 16. Nxd7 {[%emt 0:03:39]} Bxd7 {[%emt 0:00:13]} 17. Ba3 {[%emt 0:01:05]} e5 {[%emt 0:11:27]} 18. Bc5 {[%emt 0:03:13]} Qe6 {[%emt 0:00:22]} 19. dxe5 {[%emt 0:02:07]} Bxe5 {[%emt 0:02:00]} 20. Bd4 {[%emt 0:00:05]} Qf6 {[%emt 0:01:39]} 21. Rxc8 {[%emt 0:01:15]} Rxc8 {[%emt 0:02:25]} 22. Bxe5 {[%emt 0:00:44]} Qxe5 {[%emt 0:00:04]} 23. Rd1 {[%emt 0:00:58]} Be6 {[%emt 0:00:51]} 24. Bf3 {[%emt 0:01:19]} Qf5 {[%emt 0:02:52]} 25. Bg4 {[%emt 0:02:40]} Qc2 {[%emt 0:00:28]} 26. Bxe6 {[%emt 0:00:30]} fxe6 {[%emt 0:00:10]} 27. Qd4 {[%emt 0:01:05]} a6 {[%emt 0:02:44]} 28. Rf1 {[%emt 0:01:38]} Qc3 {[%emt 0:01:57]} 29. Qf4 {[%emt 0:00:34]} Qg7 {[%emt 0:02:35]} 30. a4 {[%emt 0:02:46]} Kh7 {[%emt 0:01:50]} 31. Rd1 {[%emt 0:00:42]} Rf8 {[%emt 0:04:26]} 32. Qd6 {[%emt 0:00:34]} Qf7 {[%emt 0:00:03]} 33. f4 {[%emt 0:00:42]} Rc8 {[%emt 0:00:24]} 34. e4 {[%emt 0:01:20]} dxe4 {[%emt 0:02:19]} 35. Qe5 {[%emt 0:00:11]} Rc7 {[%emt 0:01:14]} 36. Rd8 {[%emt 0:00:38]} Qg7 {[%emt 0:00:06]} 37. Qxe4 {[%emt 0:00:17]} Qf6 {[%emt 0:00:44]} 38. Re8 {[%emt 0:00:25]} Rc6 {[%emt 0:00:34]} 39. Rb8 {[%emt 0:00:26]} Qg7 {[%emt 0:00:52]} 40. Rd8 {[%emt 0:00:32]} Qf7 {[%emt 0:00:52]} 41. Qd4 {[%emt 0:00:20]} e5 {[%emt 0:00:38]} 42. fxe5 {[%emt 0:01:18]} Rc7 {[%emt 0:00:40]} 0-1

[Event "SixDays Budapest IM-B June 2024"]
[Site "Budapest"]
[Date "2024.06.03"]
[Round "1.4"]
[White "Varga, Csaba Zoltan"]
[Black "Nanditha V"]
[Result "0-1"]
[ECO "B10"]
[WhiteElo "2157"]
[BlackElo "1852"]
[Annotator "RC"]
[PlyCount "38"]
[EventDate "2024.06.01"]
[EventType "tourn"]
[EventCountry "HUN"]
[SourceTitle "playchess.com"]
[Source "ChessBase"]
[SourceQuality "1"]
[TimeControl "5400+30"]

1. e4 {[%emt 0:00:07]} c6 {[%emt 0:01:05]} 2. f3 {[%emt 0:00:25]} d5 {[%emt 0:00:33]} 3. d4 {[%emt 0:00:04]} dxe4 {[%emt 0:01:11]} 4. fxe4 {[%emt 0:00:07]} e5 {[%emt 0:01:38]} 5. Nf3 {[%emt 0:00:05]} exd4 {[%emt 0:04:01]} 6. Bc4 {[%emt 0:00:06]} Qa5+ {[%emt 0:10:45]} 7. Ke2 {[%emt 0:02:04]} Bg4 {[%emt 0:03:20]} 8. Qxd4 {[%emt 0:03:28]} Nd7 {[%emt 0:03:43]} 9. Be3 {[%emt 0:00:39]} Ngf6 {[%emt 0:01:24]} 10. Kf2 {[%emt 0:00:24]} Bxf3 {[%emt 0:01:03]} 11. gxf3 {[%emt 0:00:07]} Bc5 {[%emt 0:01:00]} 12. Qc3 {[%emt 0:00:04]} Bxe3+ {[%emt 0:00:46]} 13. Qxe3 {[%emt 0:00:07]} Ne5 {[%emt 0:05:03]} 14. Be2 {[%emt 0:00:09]} Qb6 {[%emt 0:01:16]} 15. Qxb6 {[%emt 0:00:26]} axb6 {[%emt 0:03:21]} 16. Nc3 {[%emt 0:00:07]} O-O-O {[%emt 0:00:42]} 17. Rhg1 {[%emt 0:00:24]} Rd2 {[%emt 0:05:51]} 18. f4 {[%emt 0:00:06]} Ng6 {[%emt 0:03:05]} 19. f5 {[%emt 0:03:03]} Rxc2 {[%emt 0:02:53]} 0-1

[Event "SixDays Budapest IM-B June 2024"]
[Site "Budapest"]
[Date "2024.06.03"]
[Round "1.5"]
[White "Advaitt Srikant Koduri"]
[Black "Nagarkatte Vedant"]
[Result "1/2-1/2"]
[ECO "D38"]
[WhiteElo "2066"]
[BlackElo "2272"]
[Annotator "RC"]
[PlyCount "137"]
[EventDate "2024.06.01"]
[EventType "tourn"]
[EventCountry "HUN"]
[SourceTitle "playchess.com"]
[Source "ChessBase"]
[SourceQuality "1"]
[TimeControl "5400+30"]

1. d4 {[%emt 0:00:02]} Nf6 {[%emt 0:00:11]} 2. Nf3 {[%emt 0:00:07]} d5 {[%emt 0:00:03]} 3. c4 {[%emt 0:00:07]} e6 {[%emt 0:00:04]} 4. Nc3 {[%emt 0:00:06]} Bb4 {[%emt 0:00:02]} 5. Qa4+ {[%emt 0:00:39]} Nc6 {[%emt 0:00:04]} 6. Ne5 {[%emt 0:00:48]} Bd7 {[%emt 0:00:10]} 7. Nxd7 {[%emt 0:02:16]} Nxd7 {[%emt 0:01:30]} 8. e3 {[%emt 0:02:56]} Nb6 {[%emt 0:01:05]} 9. Qb3 {[%emt 0:02:34]} dxc4 {[%emt 0:00:40]} 10. Bxc4 {[%emt 0:01:40]} Nxc4 {[%emt 0:01:18]} 11. Qxc4 {[%emt 0:00:15]} Qd5 {[%emt 0:00:16]} 12. Qxd5 {[%emt 0:04:19]} Bxc3+ {[%emt 0:00:09]} 13. bxc3 {[%emt 0:03:35]} exd5 {[%emt 0:00:06]} 14. Ke2 {[%emt 0:12:25]} f5 {[%emt 0:10:52]} 15. Kd3 {[%emt 0:05:46]} Na5 {[%emt 0:00:07]} 16. Bd2 {[%emt 0:12:12]} O-O {[%emt 0:12:52]} 17. Rab1 {[%emt 0:01:23]} b6 {[%emt 0:00:34]} 18. f3 {[%emt 0:09:54]} Rae8 {[%emt 0:02:22]} 19. Rhe1 {[%emt 0:01:57]} Nc4 {[%emt 0:01:16]} 20. Re2 {[%emt 0:01:06]} Nd6 {[%emt 0:06:00]} 21. Be1 {[%emt 0:01:51]} c5 {[%emt 0:26:55]} 22. Bg3 {[%emt 0:01:06]} Nc4 {[%emt 0:06:30]} 23. e4 {[%emt 0:04:28]} Na3 {[%emt 0:11:12]} 24. Rbe1 {[%emt 0:01:18]} dxe4+ {[%emt 0:04:48]} 25. fxe4 {[%emt 0:00:15]} f4 {[%emt 0:01:12]} 26. Bh4 {[%emt 0:02:22]} cxd4 {[%emt 0:09:33]} 27. cxd4 {[%emt 0:00:24]} b5 {[%emt 0:00:06]} 28. Rf1 {[%emt 0:03:36]} h6 {[%emt 0:02:19]} 29. d5 {[%emt 0:02:00]} Nc4 {[%emt 0:00:41]} 30. Kd4 {[%emt 0:07:01]} Ne5 {[%emt 0:01:45]} 31. Rc2 {[%emt 0:02:24]} g5 {[%emt 0:00:43]} 32. Be1 {[%emt 0:01:08]} Rf7 {[%emt 0:00:24]} 33. h3 {[%emt 0:02:46]} Rd7 {[%emt 0:00:31]} 34. Bb4 {[%emt 0:00:35]} Nf7 {[%emt 0:00:30]} 35. Rfc1 {[%emt 0:00:46]} Kh7 {[%emt 0:00:38]} 36. Rc7 {[%emt 0:00:15]} Rxc7 {[%emt 0:00:03]} 37. Rxc7 {[%emt 0:00:06]} Kg6 {[%emt 0:00:01]} 38. Rxa7 {[%emt 0:03:04]} h5 {[%emt 0:00:04]} 39. d6 {[%emt 0:01:24]} Nd8 {[%emt 0:01:24]} 40. Kd5 {[%emt 0:00:55]} g4 {[%emt 0:00:49]} 41. hxg4 {[%emt 0:00:25]} hxg4 {[%emt 0:00:01]} 42. Bc5 {[%emt 0:01:35]} f3 {[%emt 0:01:02]} 43. gxf3 {[%emt 0:00:06]} gxf3 {[%emt 0:00:01]} 44. Ra8 {[%emt 0:01:07]} Rg8 {[%emt 0:01:03]} 45. d7 {[%emt 0:02:49]} Rf8 {[%emt 0:00:32]} 46. Bf2 {[%emt 0:01:43]} Kf7 {[%emt 0:00:26]} 47. Rxd8 {[%emt 0:01:55]} Rxd8 {[%emt 0:00:01]} 48. Kd6 {[%emt 0:00:01]} Rg8 49. Kc7 {[%emt 0:00:58]} Ke7 {[%emt 0:01:31]} 50. Bc5+ {[%emt 0:01:25]} Ke6 {[%emt 0:00:04]} 51. d8=Q {[%emt 0:00:49]} Rxd8 {[%emt 0:00:07]} 52. Kxd8 {[%emt 0:00:03]} Ke5 {[%emt 0:00:03]} 53. Kd7 {[%emt 0:00:56]} Kxe4 {[%emt 0:00:01]} 54. Kc6 {[%emt 0:00:57]} b4 {[%emt 0:00:13]} 55. Kb5 {[%emt 0:00:31]} Kd5 {[%emt 0:00:07]} 56. Bf2 {[%emt 0:00:33]} Kd6 {[%emt 0:01:07]} 57. Bg3+ {[%emt 0:00:15]} Kd7 {[%emt 0:00:05]} 58. Kb6 {[%emt 0:00:07]} Kc8 {[%emt 0:00:15]} 59. Ka7 {[%emt 0:00:12]} Kd8 {[%emt 0:00:14]} 60. Kb8 {[%emt 0:00:07]} Kd7 {[%emt 0:00:13]} 61. Kb7 {[%emt 0:00:07]} Kd8 {[%emt 0:00:01]} 62. Kb6 {[%emt 0:00:29]} Kc8 {[%emt 0:00:05]} 63. Kc6 {[%emt 0:00:07]} f2 {[%emt 0:01:21]} 64. Bxf2 {[%emt 0:00:04]} Kb8 {[%emt 0:00:02]} 65. Kb6 {[%emt 0:00:32]} Ka8 {[%emt 0:00:05]} 66. Bd4 {[%emt 0:01:33]} Kb8 {[%emt 0:00:09]} 67. Ba1 {[%emt 0:00:37]} Ka8 {[%emt 0:00:04]} 68. Be5 {[%emt 0:00:54]} b3 {[%emt 0:00:07]} 69. axb3 1/2-1/2

[Event "SixDays Budapest IM-B June 2024"]
[Site "Budapest"]
[Date "2024.06.04"]
[Round "2.1"]
[White "Horvath, David"]
[Black "Nagarkatte Vedant"]
[Result "1/2-1/2"]
[ECO "E04"]
[WhiteElo "2313"]
[BlackElo "2272"]
[Annotator "RC"]
[PlyCount "79"]
[EventDate "2024.06.01"]
[EventType "tourn"]
[EventCountry "HUN"]
[SourceTitle "playchess.com"]
[Source "ChessBase"]
[SourceQuality "1"]
[TimeControl "5400+30"]

1. d4 {[%emt 0:00:03]} Nf6 {[%emt 0:05:02]} 2. c4 {[%emt 0:00:09]} e6 {[%emt 0:00:02]} 3. Nf3 {[%emt 0:00:08]} d5 {[%emt 0:00:04]} 4. g3 {[%emt 0:00:07]} dxc4 {[%emt 0:04:44]} 5. Bg2 {[%emt 0:00:29]} c5 {[%emt 0:01:11]} 6. O-O {[%emt 0:00:39]} Nc6 {[%emt 0:00:04]} 7. Ne5 {[%emt 0:10:27]} Bd7 {[%emt 0:00:08]} 8. Na3 {[%emt 0:00:10]} cxd4 {[%emt 0:00:41]} 9. Naxc4 {[%emt 0:00:08]} Be7 {[%emt 0:03:30]} 10. Qb3 {[%emt 0:04:59]} Qc8 {[%emt 0:02:38]} 11. Bf4 {[%emt 0:54:27]} O-O {[%emt 0:03:01]} 12. Rac1 {[%emt 0:02:52]} Nd5 {[%emt 0:16:45]} 13. Nxc6 {[%emt 0:01:05]} bxc6 {[%emt 0:14:54]} 14. Be5 {[%emt 0:00:12]} c5 {[%emt 0:04:15]} 15. Bd6 {[%emt 0:03:45]} Bxd6 {[%emt 0:06:51]} 16. Nxd6 {[%emt 0:00:05]} Qa6 {[%emt 0:10:17]} 17. Ne4 {[%emt 0:06:38]} Rab8 {[%emt 0:01:21]} 18. Qa3 {[%emt 0:00:13]} Qxa3 {[%emt 0:07:24]} 19. bxa3 {[%emt 0:00:01]} Bb5 {[%emt 0:02:47]} 20. Bf3 {[%emt 0:01:30]} Rfc8 {[%emt 0:08:39]} 21. a4 {[%emt 0:03:48]} Bxa4 {[%emt 0:00:45]} 22. Nxc5 {[%emt 0:00:11]} Nc3 {[%emt 0:01:29]} 23. Nxa4 {[%emt 0:02:26]} Nxa4 {[%emt 0:00:01]} 24. Rxc8+ {[%emt 0:00:11]} Rxc8 {[%emt 0:00:01]} 25. Rb1 {[%emt 0:00:10]} Nb6 {[%emt 0:01:05]} 26. Be4 {[%emt 0:04:01]} f5 {[%emt 0:01:08]} 27. Bd3 {[%emt 0:00:12]} g6 {[%emt 0:01:46]} 28. Rb5 {[%emt 0:01:24]} Rc7 {[%emt 0:00:44]} 29. f4 {[%emt 0:01:31]} Kf7 {[%emt 0:01:48]} 30. Kf2 {[%emt 0:00:19]} Nd5 {[%emt 0:00:34]} 31. Ra5 {[%emt 0:00:27]} Nc3 {[%emt 0:01:10]} 32. Ra6 {[%emt 0:00:30]} Ne4+ {[%emt 0:00:57]} 33. Bxe4 {[%emt 0:01:06]} fxe4 {[%emt 0:00:01]} 34. Ra4 {[%emt 0:00:58]} Rd7 {[%emt 0:00:07]} 35. Ke1 {[%emt 0:00:57]} e5 {[%emt 0:00:35]} 36. fxe5 {[%emt 0:00:24]} Ke6 {[%emt 0:00:20]} 37. e3 {[%emt 0:01:23]} dxe3 {[%emt 0:01:28]} 38. Ke2 {[%emt 0:00:24]} Kxe5 {[%emt 0:00:27]} 39. Ra5+ {[%emt 0:00:16]} Kf6 {[%emt 0:00:41]} 40. Kxe3 1/2-1/2

[Event "SixDays Budapest IM-B June 2024"]
[Site "Budapest"]
[Date "2024.06.04"]
[Round "2.2"]
[White "Nanditha V"]
[Black "Advaitt Srikant Koduri"]
[Result "1/2-1/2"]
[ECO "B76"]
[WhiteElo "1852"]
[BlackElo "2066"]
[Annotator "NA RC"]
[PlyCount "189"]
[EventDate "2024.06.01"]
[EventType "tourn"]
[EventCountry "HUN"]
[SourceTitle "playchess.com"]
[Source "ChessBase"]
[SourceQuality "1"]
[TimeControl "5400+30"]

1. e4 {[%emt 0:01:46]} c5 {[%emt 0:00:12]} 2. Nf3 {[%emt 0:00:34]} d6 {[%emt 0:00:09]} 3. d4 {[%emt 0:01:22]} cxd4 {[%emt 0:00:09]} 4. Nxd4 {[%emt 0:01:00]} Nf6 {[%emt 0:00:08]} 5. Nc3 {[%emt 0:00:40]} g6 {[%emt 0:00:08]} 6. Be3 {[%emt 0:00:49]} Bg7 {[%emt 0:00:08]} 7. f3 {[%emt 0:00:35]} O-O {[%emt 0:00:09]} 8. Qd2 {[%emt 0:00:39]} Nc6 {[%emt 0:00:08]} 9. O-O-O {[%emt 0:00:53]} d5 {[%emt 0:00:13]} 10. exd5 {[%emt 0:03:16]} Nxd5 {[%emt 0:00:08]} 11. Nxc6 {[%emt 0:00:55]} bxc6 {[%emt 0:00:02]} 12. Bd4 {[%emt 0:00:47]} e5 {[%emt 0:03:27]} 13. Bc5 {[%emt 0:01:26]} Be6 {[%emt 0:00:02]} 14. Ne4 {[%emt 0:01:36]} Re8 {[%emt 0:00:07]} 15. Bc4 {[%emt 0:01:06]} Qc7 {[%emt 0:05:34]} 16. g4 {[%emt 0:10:19]} h6 {[%emt 0:07:01]} 17. h4 {[%emt 0:02:26]} Red8 {[%emt 0:03:07]} 18. Qf2 $11 {[%emt 0:03:31]} Rd7 {[%emt 0:16:29]} 19. h5 {[%emt 0:02:36]} g5 {[%emt 0:01:03]} 20. Rd2 {[%emt 0:14:06]} Rad8 {[%emt 0:07:29]} 21. Ba3 {[%emt 0:06:07]} Nf4 {[%emt 0:04:43]} 22. Rxd7 {[%emt 0:02:07]} Rxd7 {[%emt 0:03:17]} 23. Bxe6 {[%emt 0:02:38]} Nxe6 {[%emt 0:00:20]} 24. Bc5 {[%emt 0:14:25]} Rd5 {[%emt 0:05:44]} 25. Be3 {[%emt 0:05:52]} Qa5 {[%emt 0:06:11]} 26. a3 {[%emt 0:08:37]} Kh8 {[%emt 0:07:25]} 27. Qe1 {[%emt 0:02:40]} Qa6 {[%emt 0:01:35]} 28. Qf1 {[%emt 0:00:08]} Qa5 {[%emt 0:02:47]} 29. Qc4 {[%emt 0:00:38]} Bf8 {[%emt 0:06:27]} 30. a4 {[%emt 0:02:00]} Qc7 {[%emt 0:06:10]} 31. Nf6 {[%emt 0:00:27]} Rd8 {[%emt 0:03:13]} 32. Re1 {[%emt 0:01:32]} Kg7 {[%emt 0:00:27]} 33. Ne4 {[%emt 0:00:08]} Nd4 {[%emt 0:01:16]} 34. Rf1 {[%emt 0:01:36]} Qd7 {[%emt 0:03:04]} 35. Bxd4 {[%emt 0:03:01]} exd4 {[%emt 0:03:26]} 36. Ng3 {[%emt 0:02:28]} Qe6 {[%emt 0:00:39]} 37. Nf5+ {[%emt 0:00:12]} Kf6 {[%emt 0:00:08]} 38. Qxe6+ {[%emt 0:00:40]} fxe6 {[%emt 0:00:07]} 39. Ng3 {[%emt 0:00:04]} Bd6 {[%emt 0:00:38]} 40. Ne2 {[%emt 0:00:41]} c5 {[%emt 0:00:17]} 41. b3 {[%emt 0:00:09]} Bc7 {[%emt 0:00:51]} 42. Kd2 {[%emt 0:00:05]} Rd5 {[%emt 0:00:44]} 43. Ng1 {[%emt 0:02:23]} Re5 {[%emt 0:00:18]} 44. Nh3 {[%emt 0:00:36]} Re3 {[%emt 0:00:40]} 45. Nf2 {[%emt 0:00:50]} Bf4 {[%emt 0:00:27]} 46. Kd1 {[%emt 0:00:01]} c4 {[%emt 0:04:12]} 47. bxc4 {[%emt 0:00:36]} Ra3 {[%emt 0:00:00]} 48. Ne4+ {[%emt 0:01:01]} Ke7 {[%emt 0:00:17]} 49. Ke2 {[%emt 0:00:38]} Rxa4 {[%emt 0:00:50]} 50. c5 {[%emt 0:01:07]} Ra2 {[%emt 0:01:55]} 51. Kd3 {[%emt 0:00:24]} Be5 {[%emt 0:01:07]} 52. Rb1 {[%emt 0:00:13]} Ra3+ {[%emt 0:00:22]} 53. Rb3 {[%emt 0:00:28]} Ra4 {[%emt 0:00:35]} 54. Rb7+ {[%emt 0:00:36]} Kd8 {[%emt 0:00:10]} 55. Nd6 {[%emt 0:00:42]} Ra3+ {[%emt 0:00:18]} 56. Ke2 {[%emt 0:01:24]} Re3+ {[%emt 0:00:09]} 57. Kf2 {[%emt 0:00:13]} Bxd6 {[%emt 0:00:03]} 58. cxd6 {[%emt 0:00:01]} Rc3 {[%emt 0:00:24]} 59. Ke2 {[%emt 0:01:35]} e5 {[%emt 0:00:52]} 60. Rxa7 {[%emt 0:00:28]} Rxc2+ {[%emt 0:00:23]} 61. Kd3 {[%emt 0:00:01]} Rc6 {[%emt 0:00:01]} 62. Ra5 {[%emt 0:00:27]} Rxd6 {[%emt 0:02:01]} 63. Rxe5 {[%emt 0:00:04]} Kd7 {[%emt 0:00:10]} 64. Re4 {[%emt 0:00:19]} Rf6 {[%emt 0:00:13]} 65. Rxd4+ {[%emt 0:00:05]} Ke6 {[%emt 0:00:10]} 66. Ke3 {[%emt 0:00:10]} Ke5 {[%emt 0:00:29]} 67. Ra4 {[%emt 0:00:05]} Rb6 {[%emt 0:00:14]} 68. Ra5+ {[%emt 0:00:37]} Kf6 {[%emt 0:00:02]} 69. Rf5+ {[%emt 0:00:31]} Kg7 {[%emt 0:00:30]} 70. Rd5 {[%emt 0:00:24]} Rb3+ {[%emt 0:00:32]} 71. Ke4 {[%emt 0:00:05]} Rb7 {[%emt 0:00:15]} 72. Rd6 {[%emt 0:00:23]} Re7+ {[%emt 0:00:11]} 73. Kd4 {[%emt 0:01:03]} Rf7 {[%emt 0:00:08]} 74. Ke3 {[%emt 0:00:07]} Re7+ {[%emt 0:00:04]} 75. Kf2 {[%emt 0:00:05]} Rf7 {[%emt 0:00:09]} 76. Kg3 {[%emt 0:00:01]} Ra7 {[%emt 0:00:09]} 77. Rg6+ {[%emt 0:00:18]} Kh7 {[%emt 0:00:06]} 78. Rd6 {[%emt 0:00:27]} Kg7 {[%emt 0:00:04]} 79. Rd3 {[%emt 0:00:10]} Rb7 {[%emt 0:00:06]} 80. f4 {[%emt 0:00:11]} gxf4+ {[%emt 0:00:29]} 81. Kxf4 {[%emt 0:00:01]} Rb4+ {[%emt 0:00:12]} 82. Kf5 {[%emt 0:00:16]} Rb5+ {[%emt 0:00:06]} 83. Ke4 {[%emt 0:00:11]} Rb4+ {[%emt 0:00:08]} 84. Rd4 {[%emt 0:00:14]} Rb7 {[%emt 0:00:32]} 85. Rd5 {[%emt 0:00:36]} Rb4+ {[%emt 0:00:24]} 86. Kf5 {[%emt 0:00:05]} Rb7 {[%emt 0:00:14]} 87. Ke6 {[%emt 0:00:40]} Rb6+ {[%emt 0:00:14]} 88. Ke5 {[%emt 0:00:36]} Rb7 {[%emt 0:00:06]} 89. Kf4 {[%emt 0:00:17]} Rb4+ {[%emt 0:00:07]} 90. Kf5 {[%emt 0:00:07]} Rb7 {[%emt 0:00:06]} 91. g5 {[%emt 0:00:36]} hxg5 {[%emt 0:00:06]} 92. Kxg5 {[%emt 0:00:03]} Kh7 {[%emt 0:00:08]} 93. h6 {[%emt 0:01:07]} Ra7 {[%emt 0:00:04]} 94. Rb5 {[%emt 0:01:04]} Rc7 {[%emt 0:00:26]} 95. Ra5 {[%emt 0:00:17]} 1/2-1/2

[Event "SixDays Budapest IM-B June 2024"]
[Site "Budapest"]
[Date "2024.06.04"]
[Round "2.3"]
[White "Bashylina, Luisa"]
[Black "Varga, Csaba Zoltan"]
[Result "0-1"]
[ECO "A40"]
[WhiteElo "2250"]
[BlackElo "2157"]
[Annotator "RC"]
[PlyCount "78"]
[EventDate "2024.06.01"]
[EventType "tourn"]
[EventCountry "HUN"]
[SourceTitle "playchess.com"]
[Source "ChessBase"]
[SourceQuality "1"]
[TimeControl "5400+30"]

1. d4 {[%emt 0:00:10]} e6 {[%emt 0:00:04]} 2. c4 {[%emt 0:00:04]} h6 {[%emt 0:00:03]} 3. Nc3 {[%emt 0:02:00]} Bb4 {[%emt 0:00:08]} 4. a3 {[%emt 0:00:25]} Bxc3+ {[%emt 0:00:05]} 5. bxc3 {[%emt 0:00:04]} c5 {[%emt 0:00:23]} 6. e4 {[%emt 0:02:50]} Qa5 {[%emt 0:00:25]} 7. Bd2 {[%emt 0:02:09]} Nf6 {[%emt 0:00:20]} 8. Bd3 {[%emt 0:02:10]} d6 {[%emt 0:00:07]} 9. Ne2 {[%emt 0:03:00]} e5 {[%emt 0:01:19]} 10. f4 {[%emt 0:05:28]} Bg4 {[%emt 0:01:14]} 11. O-O {[%emt 0:05:50]} Nbd7 {[%emt 0:00:48]} 12. Qc2 {[%emt 0:09:27]} Bxe2 {[%emt 0:00:45]} 13. Bxe2 {[%emt 0:00:06]} O-O-O {[%emt 0:01:01]} 14. Rab1 {[%emt 0:03:06]} Rhe8 {[%emt 0:00:47]} 15. Bd3 {[%emt 0:04:05]} Qc7 {[%emt 0:01:28]} 16. fxe5 {[%emt 0:06:46]} dxe5 {[%emt 0:00:07]} 17. d5 {[%emt 0:03:14]} Re7 {[%emt 0:02:20]} 18. Qa4 {[%emt 0:08:23]} Kb8 {[%emt 0:01:29]} 19. Be3 {[%emt 0:05:49]} Ne8 {[%emt 0:01:01]} 20. Be2 {[%emt 0:07:53]} Nd6 {[%emt 0:04:26]} 21. Qc2 {[%emt 0:01:53]} Ka8 {[%emt 0:01:57]} 22. Bd3 {[%emt 0:04:07]} Rh8 {[%emt 0:01:56]} 23. Qe2 {[%emt 0:03:12]} Nb6 {[%emt 0:01:51]} 24. Qa2 {[%emt 0:05:37]} Na4 {[%emt 0:01:39]} 25. Qc2 {[%emt 0:02:52]} Qa5 {[%emt 0:00:29]} 26. Rfc1 {[%emt 0:03:41]} Rc8 {[%emt 0:00:56]} 27. Rb3 {[%emt 0:03:33]} Nb6 {[%emt 0:03:48]} 28. Qe2 {[%emt 0:02:57]} Qa4 {[%emt 0:00:29]} 29. Rcb1 {[%emt 0:00:28]} Nbxc4 {[%emt 0:00:30]} 30. Bc1 {[%emt 0:00:42]} Rec7 {[%emt 0:05:28]} 31. Qg4 {[%emt 0:01:06]} Na5 {[%emt 0:01:43]} 32. R3b2 {[%emt 0:00:37]} f5 {[%emt 0:00:16]} 33. Qh5 {[%emt 0:02:00]} Nac4 {[%emt 0:05:19]} 34. Bxc4 {[%emt 0:00:37]} Nxc4 {[%emt 0:01:02]} 35. Rb3 {[%emt 0:00:13]} Na5 {[%emt 0:00:38]} 36. Rb5 {[%emt 0:00:21]} Qxe4 {[%emt 0:00:15]} 37. Bd2 {[%emt 0:01:02]} Nc4 {[%emt 0:00:41]} 38. Be1 {[%emt 0:00:28]} Nxa3 {[%emt 0:01:01]} 39. d6 {[%emt 0:00:40]} Nxb1 {[%emt 0:00:05]} 0-1